fUSD/lending_fUSD_20260414
["ID","MTS","AMOUNT","RATE_DAILY","PERIOD"]
[420495895,1776160249462,-509.720208,0.00013698,2]
[420495896,1776160249475,-500.0,0.00013698,2]
[420495897,1776160249513,-500.0,0.00013698,2]
[420495898,1776160249541,-500.0,0.00013698,2]
[420495899,1776160249552,-500.0,0.00013698,2]
[420495900,1776160249564,-500.0,0.00013698,2]
[420495901,1776160249584,-500.0,0.00013698,2]
[420495902,1776160249594,-640.207774,0.00013698,2]
[420495903,1776160249613,-640.207774,0.00013698,2]
[420495904,1776160249633,-640.207774,0.00013698,2]
[420495905,1776160249643,-640.207774,0.00013698,2]
[420495906,1776160249662,-151.0,0.00013698,2]
[420495907,1776160249675,-500.0,0.00013698,2]
[420495908,1776160249685,-500.0,0.00013698,2]
[420495909,1776160249706,-500.0,0.00013698,2]
[420495910,1776160249716,-500.0,0.00013698,2]
[420495911,1776160249726,-500.0,0.00013698,2]
[420495912,1776160249744,-241.25443467,0.00013698,2]
[420495913,1776160249761,-500.0,0.00013698,2]
[420495914,1776160249771,-500.0,0.00013698,2]
[420495915,1776160249781,-500.0,0.00013698,2]
[420495916,1776160249799,-500.0,0.00013698,2]
[420495917,1776160249809,-500.0,0.00013698,2]
[420495918,1776160249826,-500.0,0.00013698,2]
[420495919,1776160249841,-500.0,0.00013698,2]
[420495920,1776160249856,-500.0,0.00013698,2]
[420495921,1776160249869,-500.0,0.00013698,2]
[420495922,1776160249885,-500.0,0.00013698,2]
[420495923,1776160249896,-500.0,0.00013698,2]
[420495924,1776160249907,-500.0,0.00013698,2]
[420495925,1776160249921,-500.0,0.00013698,2]
[420495926,1776160249935,-540.57,0.00013698,2]
[420495927,1776160249958,-540.57,0.00013698,2]
[420495928,1776160249967,-540.57,0.00013698,2]
[420495929,1776160249982,-540.57,0.00013698,2]
[420495930,1776160249994,-540.57,0.00013698,2]
[420495931,1776160250004,-540.57,0.00013698,2]
[420495932,1776160250015,-500.0,0.00013698,2]
[420495933,1776160250026,-500.0,0.00013698,2]
[420495934,1776160250037,-500.0,0.00013698,2]
[420495935,1776160250049,-500.0,0.00013698,2]
[420495936,1776160250062,-500.0,0.00013698,2]
[420495937,1776160250077,-500.0,0.00013698,2]
[420495938,1776160250089,-725.343264,0.00013698,2]
[420495939,1776160250107,-725.343264,0.00013698,2]
[420495940,1776160250123,-725.343264,0.00013698,2]
[420495941,1776160250154,-725.343272,0.00013698,2]
[420495942,1776160250182,-151.0,0.00013698,2]
[420495943,1776160250192,-500.0,0.00013698,2]
[420495944,1776160250206,-500.0,0.00013698,2]
[420495945,1776160250227,-500.0,0.00013698,2]
[420495946,1776160250237,-500.0,0.00013698,2]
[420495947,1776160250254,-500.0,0.00013698,2]
[420495948,1776160250270,-500.0,0.00013698,2]
[420495949,1776160250280,-500.0,0.00013698,2]
[420495950,1776160250293,-500.0,0.00013698,2]
[420495951,1776160250303,-243.08484722,0.00013698,2]
[420495952,1776160250317,-500.0,0.00013699,2]
[420495953,1776160250327,-500.0,0.00013699,2]
[420495954,1776160250341,-1906.12,0.00013699,2]
[420495955,1776160250351,-247.867706,0.00013699,2]
[420495956,1776160250362,-247.867706,0.00013699,2]
[420495957,1776160250371,-247.867706,0.00013699,2]
[420495958,1776160250385,-247.867706,0.00013699,2]
[420495959,1776160250399,-247.867706,0.00013699,2]
[420495960,1776160250408,-247.867706,0.00013699,2]
[420495961,1776160250418,-247.867706,0.00013699,2]
[420495962,1776160250433,-247.867706,0.00013699,2]
[420495963,1776160250443,-166.66,0.00013699,2]
[420495964,1776160250453,-1731.411031,0.00013699,2]
[420495965,1776160250463,-200.0,0.00013699,2]
[420495966,1776160250476,-609.255372,0.00013699,2]
[420495967,1776160250486,-609.255372,0.00013699,2]
[420495968,1776160250496,-609.255372,0.00013699,2]
[420495969,1776160250509,-609.255372,0.00013699,2]
[420495970,1776160250524,-609.255372,0.00013699,2]
[420495971,1776160250534,-609.255372,0.00013699,2]
[420495972,1776160250544,-609.255372,0.00013699,2]
[420495973,1776160250558,-609.255372,0.00013699,2]
[420495974,1776160250578,-609.255372,0.00013699,2]
[420495975,1776160250591,-609.255372,0.00013699,2]
[420495976,1776160250607,-609.255372,0.00013699,2]
[420495977,1776160250618,-609.255372,0.00013699,2]
[420495978,1776160250637,-609.255372,0.00013699,2]
[420495979,1776160250651,-609.255372,0.00013699,2]
[420495980,1776160250662,-609.255372,0.00013699,2]
[420495981,1776160250689,-609.255372,0.00013699,2]
[420495982,1776160250699,-151.0,0.00013699,2]
[420495983,1776160250712,-151.0,0.00013699,2]
[420495984,1776160250731,-151.0,0.00013699,2]
[420495985,1776160250745,-152.492109,0.00013699,2]
[420495986,1776160250755,-244.924345,0.00013699,2]
[420495987,1776160250776,-244.924345,0.00013699,2]
[420495988,1776160250788,-244.924345,0.00013699,2]
[420495989,1776160250798,-244.924345,0.00013699,2]
[420495990,1776160250820,-244.924345,0.00013699,2]
[420495991,1776160251160,-244.924345,0.00013699,2]
[420495992,1776160251185,-244.924345,0.00013699,2]
[420495993,1776160251199,-244.924345,0.00013699,2]
[420495994,1776160251213,-244.924345,0.00013699,2]
[420495995,1776160251233,-244.924345,0.00013699,2]
[420495996,1776160251246,-244.924345,0.00013699,2]
[420495997,1776160251257,-500.59000578,0.00013699,2]
[420495998,1776160251273,-500.0,0.00013699,2]
[420495999,1776160251284,-323.74940906,0.00013699,2]
[420496000,1776160253954,-244.924345,0.00013699,2]
[420496001,1776160253971,-176.25059094,0.00013699,2]
[420496002,1776160254004,-500.0,0.00013699,2]
[420496003,1776160254020,-500.0,0.00013699,2]
[420496004,1776160254040,-539.67716721,0.00013699,2]
[420496005,1776160254050,-500.0,0.00013699,2]
[420496006,1776160254068,-500.0,0.00013699,2]
[420496007,1776160254085,-501.57358208,0.00013699,2]
[420496008,1776160254102,-231.78476519,0.00013699,2]
[420496016,1776160703060,463.41,8.773e-05,2]
[420496044,1776161432493,-1600.0,9.729e-05,2]
[420496045,1776161432502,-250.0,9.864e-05,2]
[420496046,1776161432516,-300.0,9.999e-05,2]
[420496047,1776161432528,-150.0,9.999e-05,2]
[420496048,1776161432541,-1200.0,9.999e-05,2]
[420496049,1776161432550,-151.21,0.0001,2]
[420496050,1776161432568,-163.88,0.0001,2]
[420496051,1776161432580,-895.67459001,0.0001,2]
[420496052,1776161432590,-2757.00012552,0.0001,2]
[420496053,1776161432605,-3556.93113756,0.0001,2]
[420496054,1776161432647,-1591.04698259,0.0001,2]
[420496055,1776161432668,-234.25953605,0.0001,2]
[420496056,1776161432682,-325.7197991,0.0001,2]
[420496057,1776161432699,-157.54008316,0.00010073,2]
[420496058,1776161432715,-500.0,0.00010073,2]
[420496059,1776161432730,-500.0,0.00010073,2]
[420496060,1776161432746,-500.1303098,0.00010073,2]
[420496061,1776161432768,-500.0,0.00010073,2]
[420496062,1776161432787,-500.0,0.00010073,2]
[420496063,1776161432799,-500.0,0.00010073,2]
[420496064,1776161432818,-500.0,0.00010073,2]
[420496065,1776161432832,-500.0,0.00010073,2]
[420496066,1776161432852,-500.0,0.00010075,2]
[420496067,1776161432864,-556.69024597,0.00010075,2]
[420496068,1776161432876,-185.2017094,0.00010075,2]
[420496069,1776161432890,-500.0,0.00010075,2]
[420496070,1776161432925,-290.3804484,0.00010075,2]
[420496071,1776161432940,-500.0,0.00010075,2]
[420496072,1776161432968,-198.69813325,0.00010075,2]
[420496073,1776161432999,-354210.2265,0.00010076,2]
[420496074,1776161433021,-150.0,0.000101,2]
[420496075,1776161433035,-578.20924308,0.00010156,2]
[420496076,1776161433053,-500.0,0.00010156,2]
[420496077,1776161433069,-229.67262656,0.00010156,2]
[420496078,1776161433092,-233.51889342,0.00010156,2]
[420496079,1776161433103,-174.61919141,0.00010156,2]
[420496080,1776161433127,-1000.0,0.00010187,2]
[420496081,1776161433142,-500.0,0.00010211,2]
[420496085,1776161433163,-500.0,0.00010266,2]
[420496089,1776161433180,-500.0,0.00010321,2]
[420496092,1776161433198,-500.0,0.00010376,2]
[420496095,1776161433214,-500.0,0.00010431,2]
[420496097,1776161433241,-500.0,0.00010486,2]
[420496099,1776161433258,-500.0,0.00010541,2]
[420496102,1776161433284,-500.0,0.00010596,2]
[420496104,1776161433303,-153.53310284,0.000106,2]
[420496105,1776161433319,-159.23789225,0.000106,2]
[420496106,1776161433337,-1000.0,0.00010621,2]
[420496111,1776161433735,-500.0,0.00010621,2]
[420496112,1776161433754,-425.57591744,0.00010621,2]
[420496113,1776161433766,-500.0,0.00010621,2]
[420496114,1776161433781,-250.0,0.00010683,2]
[420496115,1776161433791,-151.0,0.00010694,2]
[420496116,1776161433803,-200.0,0.00010694,2]
[420496117,1776161433812,-721.12765535,0.00010694,2]
[420496118,1776161433828,-1428.38747117,0.00010694,2]
[420496119,1776161433837,-151.0,0.00010694,2]
[420496120,1776161433850,-151.0,0.00010694,2]
[420496121,1776161433861,-151.0,0.00010694,2]
[420496122,1776161433874,-151.0,0.00010694,2]
[420496123,1776161433887,-151.0,0.00010694,2]
[420496124,1776161433897,-151.0,0.00010694,2]
[420496125,1776161433911,-151.0,0.00010694,2]
[420496126,1776161433924,-151.0,0.00010694,2]
[420496127,1776161433937,-151.0,0.00010694,2]
[420496128,1776161433948,-151.0,0.00010694,2]
[420496129,1776161433969,-200.0,0.00010694,2]
[420496130,1776161433984,-500.0,0.00010694,2]
[420496131,1776161433997,-500.0,0.00010694,2]
[420496132,1776161434011,-500.0,0.00010694,2]
[420496133,1776161434026,-500.0,0.00010694,2]
[420496134,1776161434040,-500.0,0.00010694,2]
[420496135,1776161434055,-500.0,0.00010694,2]
[420496136,1776161434069,-500.0,0.00010694,2]
[420496137,1776161434085,-500.0,0.00010694,2]
[420496138,1776161434109,-500.0,0.00010694,2]
[420496139,1776161434119,-500.0,0.00010694,2]
[420496140,1776161434160,-500.0,0.00010694,2]
[420496141,1776161434193,-151.0,0.00010694,2]
[420496142,1776161434215,-151.0,0.00010694,2]
[420496143,1776161434249,-171.77892072,0.000107,2]
[420496144,1776161434262,-267663.40920623,0.000107,2]
[420496145,1776161434298,-34593.38151223,0.000107,2]
[420496146,1776161434337,-42472.87609655,0.000107,2]
[420496147,1776161434531,-3229.88370083,0.000107,2]
[420496151,1776161438652,-37285.49999998,0.000107,2]
[420496152,1776161438799,-524.0,0.000107,2]
[420496153,1776161438849,-287.68959405,0.000107,2]
[420496154,1776161438936,-669.57770617,0.000107,2]
[420496159,1776161440643,-8117.28928726,0.000107,2]
[420496160,1776161440735,-635.19657638,0.000107,2]
[420496161,1776161440747,-8348.08846452,0.000107,2]
[420496162,1776161441079,-125065.3866197,0.000107,2]
[420496163,1776161441092,-250.0,0.00010701,2]
[420496164,1776161441102,-250.0,0.00010701,2]
[420496165,1776161441120,-181.08010149,0.00010704,2]
[420496166,1776161441135,-1600.0,0.000109,3]
[420496167,1776161441145,-1600.0,0.00010945,2]
[420496168,1776161441161,-287.0,0.00010999,2]
[420496169,1776161441179,-255.0,0.00010999,2]
[420496170,1776161441189,-1151.0,0.00010999,2]
[420496171,1776161441206,-565.97452496,0.00011,2]
[420496172,1776161441223,-69862.86,0.0001101,2]
[420496173,1776161441235,-183.02,0.00011013,2]
[420496174,1776161441260,-1500.0,0.00011048,2]
[420496175,1776161441277,-1225.52183649,0.00011099,2]
[420496176,1776161441307,-1225.52183647,0.00011099,2]
[420496178,1776161441345,-160.0,0.000111,2]
[420496180,1776161441361,-233.56650963,0.00011121,2]
[420496182,1776161441383,-1225.52183647,0.00011156,2]
[420496184,1776161441404,-525.47467826,0.00011168,2]
[420496185,1776161441424,-200.0,0.00011242,2]
[420496186,1776161441450,-1481.23780761,0.00011242,2]
[420496187,1776161441483,-187.78006525,0.00011252,2]
[420496188,1776161441494,-190.1699,0.000114,2]
[420496189,1776161441509,-262.070645,0.0001142,2]
[420496190,1776161441536,-150.0,0.0001142,2]
[420496191,1776161441550,-1348.0,0.0001142,2]
[420496192,1776161441565,-622.0,0.0001142,2]
[420496193,1776161441578,-3527.0,0.0001142,2]
[420496194,1776161441591,-150.0,0.0001142,2]
[420496195,1776161441605,-1264.0,0.0001142,2]
[420496196,1776161441619,-939.724,0.0001142,2]
[420496197,1776161441635,-1234.438,0.0001142,2]
[420496198,1776161441645,-6027.0,0.0001142,2]
[420496199,1776161441676,-416.0,0.0001142,2]
[420496200,1776161441686,-151.21,0.00011465,2]
[420496201,1776161441700,-151.0,0.00011486,2]
[420496202,1776161441717,-151.0,0.00011486,2]
[420496203,1776161441728,-151.0,0.00011486,2]
[420496204,1776161441738,-295.831092,0.00011486,2]
[420496205,1776161441757,-5002.85,0.00011507,2]
[420496206,1776161441768,-1225.52183647,0.00011733,2]
[420496207,1776161441778,-166.03,0.00011734,2]
[420496208,1776161441791,-200.0,0.0001179,2]
[420496209,1776161441802,-1536.04360649,0.0001179,2]
[420496210,1776161441813,-194.72792766,0.000118,2]
[420496211,1776161441823,-233.56650957,0.00011801,2]
[420496212,1776161441834,-163.88,0.00011831,2]
[420496213,1776161441845,-675.0,0.00011892,5]
[420496214,1776161441857,-1852.42,0.00011919,2]
[420496215,1776161441866,-151.0,0.00011966,2]
[420496216,1776161441876,-433.0,0.00012099,2]
[420496217,1776161441886,-1600.0,0.00012161,2]
[420496218,1776161441899,-928.0,0.00012263,2]
[420496219,1776161441909,-1225.52183647,0.00012311,2]
[420496220,1776161441919,-201.85086802,0.00012338,2]
[420496221,1776161441930,-1592.87721993,0.00012338,2]
[420496222,1776161441942,-201.93286099,0.00012348,2]
[420496223,1776161441952,-233.56650957,0.00012481,2]
[420496224,1776161441962,-345.22,0.00012656,2]
[420496225,1776161441971,-241.0973,0.000127,2]
[420496226,1776161441981,-166.03,0.00012702,2]
[420496227,1776161441993,-4314.121,0.00012702,2]
[420496228,1776161442003,-307.008,0.00012702,2]
[420496229,1776161442012,-345.22,0.00012765,2]
[420496230,1776161442022,-183.02,0.00012848,2]
[420496231,1776161442034,-200.0,0.00012878,2]
[420496232,1776161442044,-1651.81367706,0.00012886,2]
[420496233,1776161442053,-1225.52183647,0.00012889,2]
[420496234,1776161442063,-9999.99,0.00012893,2]
[420496235,1776161442074,-599.60298507,0.00012895,2]
[420496236,1776161442084,-209.40437684,0.00012896,2]
[420496237,1776161442094,-3300.0,0.000129,4]
[420496238,1776161442104,-151.21,0.0001293,2]
[420496239,1776161442114,-233.56650957,0.00013161,2]
[420496240,1776161442125,-151.22,0.0001318,2]
[420496241,1776161442134,-182.1,0.0001318,2]
[420496242,1776161442144,-350.0,0.00013245,2]
[420496243,1776161442153,-351.0,0.00013308,2]
[420496244,1776161442164,-736.0,0.00013309,2]
[420496245,1776161442173,-351.0,0.00013351,2]
[420496246,1776161442183,-351.0,0.00013363,2]
[420496247,1776161442192,-351.0,0.00013371,2]
[420496248,1776161442201,-351.0,0.00013376,2]
[420496249,1776161442211,-1600.0,0.00013377,2]
[420496250,1776161442221,-351.0,0.00013398,2]
[420496251,1776161442231,-1984.1077029,0.000134,2]
[420496252,1776161442240,-5272.0,0.00013425,2]
[420496253,1776161442250,-3240.0,0.00013425,2]
[420496254,1776161442260,-351.0,0.00013427,2]
[420496255,1776161442270,-747.8093786,0.00013433,2]
[420496256,1776161442280,-1712.93078312,0.00013434,2]
[420496257,1776161442290,-217.15233878,0.00013444,2]
[420496258,1776161442300,-350.0,0.00013457,2]
[420496259,1776161442309,-1225.52183647,0.00013467,2]
[420496260,1776161442319,-350.0,0.00013476,2]
[420496261,1776161442329,-351.0,0.00013491,2]
[420496262,1776161442338,-507.0,0.000135,2]
[420496263,1776161442349,-350.0,0.00013527,2]
[420496264,1776161442359,-4735.45209966,0.0001358,2]
[420496265,1776161442369,-2000.0,0.0001359,2]
[420496266,1776161442379,-200.0,0.0001359,2]
[420496267,1776161442389,-3153.0735,0.00013598,2]
[420496268,1776161442401,-1044.50269634,0.00013599,2]
[420496269,1776161442411,-350.0,0.00013599,2]
[420496270,1776161442420,-2815.0,0.00013612,2]
[420496271,1776161442430,-351.0,0.00013614,2]
[420496272,1776161442444,-351.0,0.00013634,2]
[420496273,1776161442453,-351.0,0.00013649,2]
[420496274,1776161442463,-163.88,0.00013663,2]
[420496275,1776161442475,-166.03,0.0001367,2]
[420496276,1776161442485,-5272.0,0.00013681,2]
[420496277,1776161442496,-263.78975516,0.00013688,2]
[420496278,1776161442506,-1314.26993727,0.00013689,2]
[420496279,1776161442520,-5272.0,0.00013694,2]
[420496280,1776161442531,-500.0,0.00013698,2]
[420496281,1776161442541,-500.0,0.00013698,2]
[420496282,1776161442551,-500.0,0.00013698,2]
[420496283,1776161442571,-500.0,0.00013698,2]
[420496284,1776161442581,-500.0,0.00013698,2]
[420496285,1776161442590,-500.0,0.00013698,2]
[420496286,1776161442604,-500.0,0.00013698,2]
[420496287,1776161442620,-481.24476443,0.00013698,2]
[420496288,1776161442629,-500.0,0.00013698,2]
[420496289,1776161442646,-500.0,0.00013698,2]
[420496290,1776161442664,-500.0,0.00013698,2]
[420496291,1776161442674,-500.0,0.00013698,2]
[420496292,1776161442696,-264.57192134,0.00013698,2]
[420496293,1776161442709,-780.53,0.00013698,2]
[420496294,1776161442719,-780.53,0.00013698,2]
[420496295,1776161442740,-780.53,0.00013698,2]
[420496296,1776161442753,-500.0,0.00013698,2]
[420496297,1776161442762,-500.0,0.00013698,2]
[420496298,1776161442787,-500.0,0.00013698,2]
[420496299,1776161442796,-750.74,0.00013698,2]
[420496300,1776161442806,-750.74,0.00013698,2]
[420496301,1776161442826,-750.74,0.00013698,2]
[420496302,1776161442836,-750.74,0.00013698,2]
[420496303,1776161442845,-500.0,0.00013698,2]
[420496304,1776161442858,-500.0,0.00013698,2]
[420496305,1776161442868,-500.0,0.00013698,2]
[420496306,1776161442880,-500.0,0.00013698,2]
[420496307,1776161442889,-500.0,0.00013698,2]
[420496308,1776161442903,-500.0,0.00013698,2]
[420496309,1776161442915,-500.0,0.00013698,2]
[420496310,1776161442924,-500.0,0.00013698,2]
[420496311,1776161442935,-500.6388815,0.00013698,2]
[420496312,1776161442951,-500.0,0.00013698,2]
[420496313,1776161442961,-500.0,0.00013698,2]
[420496314,1776161442971,-500.0,0.00013698,2]
[420496315,1776161442987,-500.0,0.00013698,2]
[420496316,1776161442998,-500.0,0.00013698,2]
[420496317,1776161443009,-500.0,0.00013698,2]
[420496318,1776161443029,-182.44854255,0.00013698,2]
[420496319,1776161443041,-500.0,0.00013698,2]
[420496320,1776161443053,-500.0,0.00013698,2]
[420496321,1776161443078,-500.0,0.00013698,2]
[420496322,1776161443088,-500.0,0.00013698,2]
[420496323,1776161443123,-500.0,0.00013698,2]
[420496324,1776161443138,-500.0,0.00013698,2]
[420496325,1776161443171,-500.0,0.00013698,2]
[420496328,1776161443206,-500.0,0.00013698,2]
[420496331,1776161443256,-151.0,0.00013698,2]
[420496334,1776161443364,-151.0,0.00013698,2]
[420496336,1776161443485,-151.0,0.00013698,2]
[420496337,1776161443531,-500.0,0.00013698,2]
[420496338,1776161443543,-500.0,0.00013698,2]
[420496339,1776161443574,-500.0,0.00013698,2]
[420496341,1776161443603,-500.0,0.00013698,2]
[420496343,1776161443648,-500.0,0.00013698,2]
[420496346,1776161443681,-500.0,0.00013698,2]
[420496349,1776161443706,-500.0,0.00013698,2]
[420496352,1776161443726,-500.0,0.00013698,2]
[420496355,1776161443750,-500.0,0.00013698,2]
[420496358,1776161443770,-500.0,0.00013698,2]
[420496359,1776161443787,-500.0,0.00013698,2]
[420496362,1776161443799,-500.0,0.00013698,2]
[420496363,1776161443814,-500.0,0.00013698,2]
[420496364,1776161443828,-500.0,0.00013698,2]
[420496365,1776161443838,-500.0,0.00013699,2]
[420496366,1776161443851,-151.0,0.00013699,2]
[420496367,1776161443860,-151.0,0.00013699,2]
[420496368,1776161443871,-151.0,0.00013699,2]
[420496369,1776161443882,-172.021484,0.00013699,2]
[420496370,1776161443894,-151.0,0.00013699,2]
[420496371,1776161443904,-151.0,0.00013699,2]
[420496372,1776161443913,-151.0,0.00013699,2]
[420496373,1776161443926,-500.0,0.00013699,2]
[420496374,1776161443938,-500.0,0.00013699,2]
[420496375,1776161443948,-500.0,0.00013699,2]
[420496376,1776161443958,-500.0,0.00013699,2]
[420496377,1776161443971,-500.0,0.00013699,2]
[420496378,1776161443980,-163.80985617,0.00013699,2]
[420496379,1776161443990,-500.0,0.00013699,2]
[420496380,1776161444002,-500.34026824,0.00013699,2]
[420496381,1776161444013,-500.0,0.00013699,2]
[420496382,1776161444022,-500.0,0.00013699,2]
[420496383,1776161444032,-500.0,0.00013699,2]
[420496384,1776161444043,-500.0,0.00013699,2]
[420496385,1776161444054,-500.0,0.00013699,2]
[420496386,1776161444064,-500.0,0.00013699,2]
[420496387,1776161444074,-500.0,0.00013699,2]
[420496388,1776161444087,-500.0,0.00013699,2]
[420496389,1776161444097,-500.0,0.00013699,2]
[420496390,1776161444107,-500.0,0.00013699,2]
[420496391,1776161444116,-500.0,0.00013699,2]
[420496392,1776161444126,-500.0,0.00013699,2]
[420496393,1776161444138,-162.94039076,0.00013699,2]
[420496394,1776161444147,-500.0,0.00013699,2]
[420496395,1776161444157,-500.56056141,0.00013699,2]
[420496396,1776161444169,-569.35372801,0.00013699,2]
[420496397,1776161444182,-500.0,0.00013699,2]
[420496398,1776161444193,-500.0,0.00013699,2]
[420496399,1776161444203,-500.0,0.00013699,2]
[420496400,1776161444216,-500.0,0.00013699,2]
[420496401,1776161444232,-599.66218983,0.00013699,2]
[420496402,1776161444242,-169.08698266,0.00013699,2]
[420496403,1776161444255,-158.79502316,0.00013699,2]
[420496404,1776161444266,-500.0,0.00013699,2]
[420496405,1776161444279,-408.44799284,0.00013699,2]
[420496406,1776161444292,-500.0,0.00013699,2]
[420496407,1776161444307,-160.94923742,0.00013699,2]
[420496408,1776161444323,-168.91116423,0.00013699,2]
[420496409,1776161444335,-500.0,0.00013699,2]
[420496410,1776161444351,-500.0,0.00013699,2]
[420496411,1776161444367,-475.0359768,0.00013699,2]
[420496412,1776161444379,-500.32247515,0.00013699,2]
[420496413,1776161444397,-500.0,0.00013699,2]
[420496414,1776161444416,-211.24669468,0.00013699,2]
[420496415,1776161444436,-500.0,0.00013699,2]
[420496416,1776161444458,-516.38965989,0.00013699,2]
[420496417,1776161444470,-202.92367114,0.00013699,2]
[420496418,1776161444509,-166.70740381,0.00013699,2]
[420496419,1776161444527,-313.13367377,0.00013699,2]
[420496420,1776161444550,-163.99019307,0.00013699,2]
[420496421,1776161444595,-607.67723663,0.00013699,2]
[420496423,1776161444657,-561.89558629,0.00013699,2]
[420496426,1776161444724,-500.0,0.00013699,2]
[420496428,1776161444823,-500.0,0.00013699,2]
[420496430,1776161444872,-500.29671401,0.00013699,2]
[420496432,1776161444912,-500.0,0.00013699,2]
[420496433,1776161444933,-500.0,0.00013699,2]
[420496434,1776161444956,-159.61,0.00013699,2]
[420496435,1776161444966,-4486.554762,0.00013699,2]
[420496436,1776161444991,-6172.2894126,0.00013699,2]
[420496437,1776161445004,-200.0,0.00013699,2]
[420496438,1776161445017,-63306.37282251,0.00013699,2]
[420496439,1776161445050,-3549.4941997,0.00013699,2]
[420496440,1776161445067,-7464.80342362,0.00013699,2]
[420496441,1776161445098,-3319.34564539,0.00013699,2]
[420496442,1776161445977,-860.97730348,0.0001142,2]
[420496443,1776161446005,-1612.02269652,0.0001142,2]
[420496444,1776161446018,-20617.31269178,0.00013699,2]
[420496445,1776161446053,-3939.183122,0.00013699,2]
[420496446,1776161446067,-526.68434252,0.00013699,2]
[420496447,1776161446089,-73468.8748562,0.00013699,2]
[420496448,1776161446152,-3302.55053612,0.00013699,2]
[420496452,1776161446593,-6542.47981884,0.00013699,2]
[420496453,1776161447192,-439.13846193,0.00013699,2]
[420496454,1776161447235,-100033.58704478,0.00013699,2]
[420496455,1776161448500,-18746.95554474,0.00013699,2]
[420496456,1776161448512,-3998.24536317,0.00013699,2]
[420496457,1776161448521,-151.0,0.00013699,2]
[420496458,1776161448534,-200.0,0.00013699,2]
[420496459,1776161448544,-1882.0,0.00013699,2]
[420496460,1776161448553,-1882.0,0.00013699,2]
[420496461,1776161448562,-1882.0,0.00013699,2]
[420496462,1776161448571,-1882.0,0.00013699,2]
[420496463,1776161448583,-1882.0,0.00013699,2]
[420496464,1776161448592,-1882.0,0.00013699,2]
[420496465,1776161448602,-1882.0,0.00013699,2]
[420496466,1776161448611,-1882.0,0.00013699,2]
[420496467,1776161448623,-1882.0,0.00013699,2]
[420496468,1776161448633,-1582.0,0.00013699,2]
[420496469,1776161448642,-780.53,0.00013699,2]
[420496470,1776161448651,-500.0,0.00013699,2]
[420496471,1776161448661,-200.0,0.00013699,2]
[420496472,1776161448670,-167.32496857,0.00013699,2]
[420496473,1776161448680,-151.0,0.00013699,2]
[420496474,1776161448690,-151.0,0.00013699,2]
[420496475,1776161448699,-151.0,0.00013699,2]
[420496476,1776161448709,-151.0,0.00013699,2]
[420496477,1776161448718,-151.0,0.00013699,2]
[420496478,1776161448728,-151.0,0.00013699,2]
[420496479,1776161448738,-2000.0,0.00013699,2]
[420496480,1776161448748,-2000.0,0.00013699,2]
[420496481,1776161448757,-2000.0,0.00013699,2]
[420496482,1776161448767,-2000.0,0.00013699,2]
[420496483,1776161448776,-2000.0,0.00013699,2]
[420496484,1776161448786,-2000.0,0.00013699,2]
[420496485,1776161448796,-500.0,0.00013699,2]
[420496486,1776161448806,-151.0,0.00013699,2]
[420496487,1776161448815,-151.0,0.00013699,2]
[420496488,1776161448825,-151.0,0.00013699,2]